fUST/lending_fUST_20250910
["ID","MTS","AMOUNT","RATE_DAILY","PERIOD"]
[384696819,1757513934510,-431.03222428,0.00014444,2]
[384696820,1757513934757,-68.96777572,0.00014444,2]
[384696821,1757513934812,-500.0,0.00014444,2]
[384696822,1757513934865,-500.0,0.00014444,2]
[384696823,1757513934918,-500.0,0.00014444,2]
[384696824,1757513934968,-500.0,0.00014444,2]
[384696825,1757513935018,-500.0,0.00014444,2]
[384696826,1757513935072,-500.0,0.00014444,2]
[384696827,1757513935124,-500.0,0.00014444,2]
[384696828,1757513935175,-500.0,0.00014444,2]
[384696829,1757513935227,-500.0,0.00014444,2]
[384696830,1757513935279,-362.07444856,0.00014444,2]
[384696831,1757513935476,-137.92555144,0.00014444,2]
[384696832,1757513935530,-500.0,0.00014444,2]
[384696833,1757513935582,-500.0,0.00014444,2]
[384696834,1757513935633,-500.0,0.00014444,2]
[384696835,1757513935688,-500.0,0.00014444,2]
[384696836,1757513935742,-500.0,0.00014444,2]
[384696837,1757513935802,-500.0,0.00014444,2]
[384696838,1757513935860,-500.0,0.00014444,2]
[384696839,1757513935918,-500.0,0.00014444,2]
[384696840,1757513935972,-500.0,0.00014444,2]
[384696841,1757513936030,-224.15889712,0.00014444,2]
[384696842,1757513936278,-275.84110288,0.00014444,2]
[384696843,1757513938960,-164.11112026,0.00014444,2]
[384696844,1757513938970,-28.51614145,0.00014444,2]
[384696845,1757513939016,-471.48385855,0.00014444,2]
[384696846,1757513939025,-28.51614145,0.00014444,2]
[384696847,1757513939064,-471.48385855,0.00014444,2]
[384696848,1757513939074,-28.51614145,0.00014444,2]
[384696849,1757513939110,-275.84110288,0.00014444,2]
[384696850,1757513939146,-195.64275567,0.00014444,2]
[384696851,1757513939156,-500.0,0.00014444,2]
[384696852,1757513939164,-500.0,0.00014444,2]
[384696853,1757513939174,-232.40982718,0.00014444,2]
[384696854,1757513939183,-500.0,0.00014444,2]
[384696855,1757513939192,-248.89418791,0.00014444,2]
[384696856,1757513939201,-500.0,0.00014444,2]
[384696857,1757513939211,-500.0,0.00014444,2]
[384696858,1757513939219,-500.0,0.00014444,2]
[384696859,1757513939229,-500.0,0.00014444,2]
[384696860,1757513939238,-500.0,0.00014444,2]
[384696861,1757513939247,-500.0,0.00014444,2]
[384696862,1757513939256,-169.28204012,0.00014444,2]
[384696863,1757513939266,-276.35812211,0.00014444,2]
[384696864,1757513939275,-480.0,0.00014445,2]
[384696865,1757513939284,-480.0,0.00014445,2]
[384696866,1757513939294,-186.85,0.00014445,2]
[384696867,1757513939303,-480.0,0.00014445,2]
[384696868,1757513939312,-480.0,0.00014445,2]
[384696869,1757513939321,-480.0,0.00014445,2]
[384696870,1757513939330,-262.16,0.00014445,2]
[384696871,1757513939340,-480.0,0.00014445,2]
[384696872,1757513939350,-496.73086125,0.00014445,2]
[384696873,1757513939400,-632.67913875,0.00014445,2]
[384696874,1757513939413,-177.62,0.00014719,2]
[384696875,1757513939423,-480.0,0.00014719,2]
[384696876,1757513939432,-480.0,0.00014719,2]
[384696877,1757513939441,-480.0,0.00014719,2]
[384696878,1757513939450,-1129.41,0.00014719,2]
[384696879,1757513939460,-300.0,0.00014733,2]
[384696880,1757513939470,-300.0,0.00014733,2]
[384696881,1757513939479,-300.0,0.00014733,2]
[384696882,1757513939488,-300.0,0.00014733,2]
[384696883,1757513939498,-300.0,0.00014733,2]
[384696884,1757513939507,-300.0,0.00014733,2]
[384696885,1757513939517,-300.0,0.00014733,2]
[384696886,1757513939526,-300.0,0.00014733,2]
[384696887,1757513939535,-300.0,0.00014733,2]
[384696888,1757513939547,-300.0,0.00014733,2]
[384696889,1757513939559,-300.0,0.00014733,2]
[384696890,1757513939569,-300.0,0.00014733,2]
[384696891,1757513939578,-300.0,0.00014733,2]
[384696892,1757513939587,-300.0,0.00014733,2]
[384696893,1757513939597,-300.0,0.00014733,2]
[384696894,1757513939608,-480.0,0.00014917,2]
[384696895,1757513939620,-480.0,0.00014917,2]
[384696896,1757513939630,-480.0,0.00014993,2]
[384696897,1757513939641,-297.06,0.00014993,2]
[384696898,1757513939652,-383.24086125,0.00014993,2]
[384696899,1757513953123,-234.20221807,0.00014695,2]
[384696900,1757513953181,-1226.16913875,0.00014843,2]
[384696901,1757513953242,-96.75913875,0.00014993,2]
[384696902,1757513953300,-1129.41,0.00014993,2]
[384696903,1757513953366,-600.0,0.00015027,2]
[384696904,1757513953419,-1492.7540556,0.00015116,2]
[384696905,1757513953478,-141.42089766,0.00015152,2]
[384696906,1757513953850,-158.57910234,0.00015152,2]
[384696907,1757513953905,-500.0,0.00015153,3]
[384696908,1757513953959,-304.99,0.00015153,3]
[384696909,1757513954014,-502.51,0.00015153,3]
[384696910,1757513954070,-221.07,0.00015153,3]
[384696911,1757513954128,-1301.84,0.00015153,3]
[384696912,1757513954185,-650.92,0.00015153,3]
[384696913,1757513954243,-151.0,0.00015163,2]
[384696914,1757513954300,-151.0,0.00015163,2]
[384696915,1757513954356,-151.0,0.00015163,2]
[384696916,1757513954420,-151.0,0.00015163,2]
[384696917,1757513954474,-151.0,0.00015163,2]
[384696918,1757513954532,-173.90391,0.00015163,2]
[384696919,1757513954597,-173.90391,0.00015163,2]
[384696920,1757513954654,-173.90391,0.00015163,2]
[384696921,1757513954856,-173.90391,0.00015163,2]
[384696922,1757513954913,-151.0,0.00015163,2]
[384696923,1757513954965,-151.0,0.00015163,2]
[384696924,1757513955995,-69.15525766,0.00015163,2]
[384696925,1757513956047,-151.0,0.00015163,2]
[384696926,1757513956114,-151.0,0.00015163,2]
[384696927,1757513956169,-9048.20218,0.00015163,2]
[384696930,1757513968212,-197.601283,0.00015068,2]
[384696931,1757513968378,-325.46,0.00015153,3]
[384696932,1757513968439,-357.643368,0.00015163,2]
[384696933,1757513968499,-357.643368,0.00015163,2]
[384696934,1757513968555,-357.643368,0.00015163,2]
[384696935,1757513968702,-197.601283,0.00014918,2]
[384696936,1757513968899,-6610.425943,0.00015163,2]
[384696937,1757513968939,-197.601283,0.00015163,2]
[384696938,1757513968993,-9604.807434,0.00015163,2]
[384696939,1757513969035,-10000.01,0.00015163,2]
[384696940,1757513969088,-10000.01,0.00015163,2]
[384696941,1757513969132,-10000.01,0.00015163,2]
[384696942,1757513969182,-10000.01,0.00015163,2]
[384696943,1757513969346,-10000.01,0.00015163,2]
[384696944,1757514002913,864.0,0.00018713,20]
[384696945,1757514033823,-1248.8941879,0.00014299,2]
[384696946,1757514033890,-616.08,0.00014445,2]
[384696947,1757514033955,-671.33725946,0.00015063,2]
[384696948,1757514034130,-300.0,0.00015144,2]
[384696949,1757514034191,-1200.0,0.00015144,2]
[384696950,1757514034403,-4629.1687901,0.00015145,2]
[384696951,1757514034463,-34.2624198,0.00015153,3]
[384696952,1757514034615,-673.1475802,0.00015153,3]
[384696953,1757514034676,-1763.75,0.00015153,3]
[384696954,1757514034736,-937.57,0.00015153,3]
[384696955,1757514034796,-537.75,0.00015153,3]
[384696956,1757514034858,-344.7,0.00015153,3]
[384696957,1757514034919,-357.643368,0.00015163,2]
[384696958,1757514035482,-422.87131748,0.00015162,2]
[384696959,1757514035555,-77.12868252,0.00015162,2]
[384696960,1757514035565,-500.0,0.00015162,2]
[384696961,1757514035574,-161.73131099,0.00015162,2]
[384696962,1757514035583,-198.71000649,0.00015162,2]
[384696963,1757514035643,-301.28999351,0.00015162,2]
[384696964,1757514035652,-236.46000649,0.00015162,2]
[384696965,1757514035711,-263.53999351,0.00015162,2]
[384696966,1757514035720,-81.16000649,0.00015162,2]
[384696967,1757514035775,-357.643368,0.00015162,2]
[384696968,1757514035824,-61.19662551,0.00015162,2]
[384696969,1757514035834,-500.0,0.00015162,2]
[384696970,1757514035845,-209.69147809,0.00015162,2]
[384696971,1757514081196,-666.0,0.00014175,2]
[384696972,1757514081255,-480.0,0.00014445,2]
[384696973,1757514081308,-480.0,0.00014719,2]
[384696974,1757514081362,-160.2,0.00014993,2]
[384696975,1757514081420,-554.39996331,0.0001501,2]
[384696976,1757514081475,-235.54,0.00015153,3]
[384696977,1757514081530,-185.73,0.00015153,3]
[384696978,1757514081586,-162.25,0.00015153,3]
[384696979,1757514081642,-897.47,0.00015153,3]
[384696980,1757514081696,-300.0,0.00015161,2]
[384696981,1757514081750,-290.30852191,0.00015162,2]
[384696982,1757514081803,-500.0,0.00015162,2]
[384696983,1757514081954,-389.1913287,0.00015162,2]
[384696984,1757514082010,-293.25671749,0.00015162,2]
[384696985,1757514082069,-291.54366269,0.00015162,2]
[384696986,1757514082127,-500.0,0.00015162,2]
[384696987,1757514082184,-467.52047112,0.00015162,2]
[384696988,1757514082236,-500.0,0.00015162,2]
[384696989,1757514082290,-500.0,0.00015162,2]
[384696990,1757514082350,-500.0,0.00015162,2]
[384696991,1757514082406,-500.0,0.00015162,2]
[384696992,1757514082460,-500.0,0.00015162,2]
[384696993,1757514082519,-500.0,0.00015162,2]
[384696994,1757514082732,-500.0,0.00015162,2]
[384696995,1757514082789,-500.0,0.00015162,2]
[384696996,1757514082852,-500.0,0.00015162,2]
[384696997,1757514082911,-500.0,0.00015162,2]
[384696998,1757514082972,-500.0,0.00015162,2]
[384696999,1757514083029,-500.0,0.00015162,2]
[384697000,1757514083090,-500.0,0.00015162,2]
[384697001,1757514083153,-500.0,0.00015162,2]
[384697002,1757514083212,-500.0,0.00015162,2]
[384697003,1757514083270,-500.0,0.00015162,2]
[384697004,1757514084985,-293.19866956,0.00015162,2]
[384697005,1757514085041,-0.01,0.00015162,2]
[384697006,1757514113198,-10000.01,0.0001501,2]
[384697007,1757514113424,-3947.98911266,0.0001501,2]
[384697008,1757514113491,-2104.03177468,0.0001501,2]
[384697009,1757514113598,-1665.89801364,0.00015063,2]
[384697010,1757514113660,-480.0,0.00015143,2]
[384697011,1757514113725,-206.79133044,0.00015162,2]
[384697012,1757514113783,-190.09043547,0.00015162,2]
[384697013,1757514113847,-500.0,0.00015162,2]
[384697014,1757514113910,-500.0,0.00015162,2]
[384697015,1757514113970,-500.0,0.00015162,2]
[384697016,1757514114032,-500.0,0.00015162,2]
[384697017,1757514114096,-414.4504409,0.00015162,2]
[384697018,1757514114338,-85.5495591,0.00015162,2]
[384697019,1757514114398,-500.0,0.00015162,2]
[384697020,1757514114460,-500.0,0.00015162,2]
[384697021,1757514114520,-500.0,0.00015162,2]
[384697022,1757514114577,-623.58202974,0.00015162,2]
[384697023,1757514114634,-262.33592324,0.00015162,2]
[384697024,1757514114691,-500.0,0.00015162,2]
[384697025,1757514114753,-500.0,0.00015162,2]
[384697026,1757514114813,-500.0,0.00015162,2]
[384697027,1757514114878,-500.0,0.00015162,2]
[384697028,1757514114941,-252.39830329,0.00015162,2]
[384697029,1757514115004,-52.27836926,0.00015162,2]
[384697030,1757514115932,-33.27118984,0.00015162,2]
[384697031,1757514115979,-414.4504409,0.00015162,2]
[384697032,1757514115988,-85.5495591,0.00015162,2]
[384697033,1757514153862,-503.9269489,0.00014912,2]
[384697034,1757514153929,-503.9269489,0.00015063,2]
[384697035,1757514153998,-480.0,0.00015143,2]
[384697036,1757514154059,-480.0,0.00015143,2]
[384697037,1757514154121,-493.84020892,0.00015143,2]
[384697038,1757514154185,-300.0,0.00015161,2]
[384697039,1757514154244,-179.0,0.00015161,2]
[384697040,1757514154306,-414.4504409,0.00015162,2]
[384697041,1757514154369,-500.0,0.00015162,2]
[384697042,1757514154434,-500.0,0.00015162,2]
[384697043,1757514154500,-500.0,0.00015162,2]
[384697044,1757514154740,-500.0,0.00015162,2]
[384697045,1757514154811,-500.0,0.00015162,2]
[384697046,1757514154880,-500.0,0.00015162,2]
[384697047,1757514154954,-500.0,0.00015162,2]
[384697048,1757514155025,-500.0,0.00015162,2]
[384697049,1757514155103,-500.0,0.00015162,2]
[384697050,1757514155170,-516.83286516,0.00015162,2]
[384697051,1757514155234,-500.0,0.00015162,2]
[384697052,1757514155297,-500.0,0.00015162,2]
[384697053,1757514155365,-466.34426968,0.00015162,2]
[384697054,1757514155633,-234.16796971,0.0001499,2]
[384697055,1757514155695,-33.65573032,0.00015162,2]
[384697056,1757514155757,-500.0,0.00015162,2]
[384697057,1757514155818,-500.0,0.00015162,2]
[384697058,1757514155885,-500.0,0.00015162,2]
[384697059,1757514155948,-500.0,0.00015162,2]
[384697060,1757514156022,-500.0,0.00015162,2]
[384697061,1757514156099,-239.39181475,0.00015162,2]
[384697062,1757514156159,-500.0,0.00015162,2]
[384697063,1757514156224,-500.0,0.00015162,2]
[384697064,1757514156296,-500.0,0.00015162,2]
[384697065,1757514156368,-485.57897044,0.00015162,2]
[384697066,1757514156722,-14.42102956,0.00015162,2]
[384697067,1757514156783,-500.0,0.00015162,2]
[384697068,1757514156842,-500.0,0.00015162,2]
[384697069,1757514156903,-297.39780525,0.00015162,2]
[384697070,1757514156960,-500.0,0.00015162,2]
[384697071,1757514157015,-214.66888702,0.00015162,2]
[384697072,1757514157076,-500.0,0.00015162,2]
[384697073,1757514157135,-500.0,0.00015162,2]
[384697074,1757514157194,-495.52917177,0.00015162,2]
[384697075,1757514157254,-500.0,0.00015162,2]
[384697076,1757514157313,-500.0,0.00015162,2]
[384697077,1757514157376,-455.9762128,0.00015162,2]
[384697078,1757514157580,-44.0237872,0.00015162,2]
[384697079,1757514157640,-500.0,0.00015162,2]
[384697080,1757514157700,-500.0,0.00015162,2]
[384697081,1757514157758,-500.0,0.00015162,2]
[384697082,1757514157816,-500.0,0.00015162,2]
[384697083,1757514157881,-500.0,0.00015162,2]
[384697084,1757514157941,-500.0,0.00015162,2]
[384697085,1757514157998,-500.0,0.00015162,2]
[384697086,1757514158056,-500.0,0.00015162,2]
[384697087,1757514158115,-500.0,0.00015162,2]
[384697088,1757514158176,-411.9624256,0.00015162,2]
[384697089,1757514160759,-42.86340732,0.00015162,2]
[384697090,1757514160804,-45.17416708,0.00015162,2]
[384697091,1757514160815,-454.82583292,0.00015162,2]
[384697092,1757514161252,-45.17416708,0.00015162,2]
[384697093,1757514161311,-500.0,0.00015162,2]
[384697094,1757514161368,-500.0,0.00015162,2]
[384697095,1757514161574,-500.0,0.00015162,2]
[384697096,1757514161631,-500.0,0.00015162,2]
[384697097,1757514161687,-500.0,0.00015162,2]
[384697098,1757514161749,-500.0,0.00015162,2]
[384697099,1757514161814,-500.0,0.00015162,2]
[384697100,1757514161874,-500.0,0.00015162,2]
[384697101,1757514161932,-500.0,0.00015162,2]
[384697102,1757514161991,-409.66166584,0.00015162,2]
[384697103,1757514162622,-90.33833416,0.00015162,2]
[384697104,1757514162679,-10000.01,0.00015162,2]
[384697105,1757514162724,-10000.01,0.00015162,2]
[384697106,1757514162770,-10000.01,0.00015162,2]
[384697107,1757514162818,-10000.01,0.00015162,2]
[384697108,1757514221755,-400.0,0.00014299,2]
[384697113,1757514294192,-1000.0,0.00020584,20]
[384697117,1757514393374,160.0,7.5e-07,2]
[384697119,1757514394450,160.0,7.5e-07,2]
[384697120,1757514395505,160.0,7.5e-07,2]
[384697121,1757514397442,160.0,7.5e-07,2]
[384697130,1757514492421,301.49090544,0.00013364,2]
[384697131,1757514497451,418.1437522,0.00010618,2]
[384697132,1757514499143,8640.37534236,0.000125,2]
[384697133,1757514499197,2824.73739365,0.000125,2]
[384697136,1757514512784,284.74182627,0.0001,2]
[384697137,1757514515561,301.49090544,0.00013364,2]
[384697139,1757514522903,1000.0,0.0001,2]
[384697141,1757514528670,5589.03987464,0.0001,2]
[384697143,1757514528729,10000.01,0.0001,2]
[384697144,1757514528787,2085.1355484,0.0001,2]
[384697145,1757514530293,7914.8744516,0.0001,2]
[384697146,1757514530346,10000.01,0.0001,2]
[384697147,1757514530399,10000.01,0.0001,2]
[384697148,1757514530452,10000.01,0.0001,2]
[384697149,1757514530506,2713.10188888,0.0001,2]
[384697150,1757514530759,1726.20414467,0.0001,2]
[384697151,1757514539000,301.49090544,0.00013364,2]
[384697152,1757514562002,301.49090544,0.00013364,2]
[384697153,1757514567340,2228.1187995,0.00013125,2]
[384697154,1757514578396,301.49090544,0.00013364,2]
[384697155,1757514606074,301.49090544,0.00013364,2]
[384697156,1757514629014,301.49090544,0.00013364,2]
[384697225,1757514632788,-301.49090544,0.00013499,2]
[384697226,1757514632798,-301.49090544,0.00013635,2]
[384697228,1757514632808,-153.06551354,0.00013964,2]
[384697230,1757514632817,-611.64979211,0.00013964,2]
[384697231,1757514632826,-300.0,0.00014055,2]
[384697232,1757514632836,-300.0,0.00014055,2]
[384697234,1757514632845,-300.0,0.00014055,2]
[384697235,1757514632855,-1200.0,0.00014055,2]
[384697236,1757514632864,-300.0,0.00014055,2]
[384697238,1757514632874,-300.0,0.00014055,2]
[384697239,1757514632887,-9909.62166584,0.00014056,2]
[384697241,1757514632902,-480.0,0.00014056,2]
[384697243,1757514632912,-480.0,0.00014056,2]
[384697245,1757514632922,-480.0,0.00014056,2]
[384697247,1757514632931,-480.0,0.00014056,2]
[384697249,1757514632940,-480.0,0.00014056,2]
[384697250,1757514632949,-480.0,0.00014056,2]
[384697251,1757514632958,-480.0,0.00014056,2]
[384697252,1757514632967,-22539.5692385,0.00014057,2]
[384697253,1757514632976,-998.00055182,0.0001423,2]
[384697254,1757514632985,-480.0,0.0001433,2]
[384697255,1757514632995,-480.0,0.0001433,2]
[384697256,1757514633004,-480.0,0.00014443,2]
[384697257,1757514633014,-480.0,0.00014443,2]
[384697258,1757514633023,-480.0,0.00014443,2]
[384697259,1757514633032,-480.0,0.00014443,2]
[384697260,1757514633041,-480.0,0.00014443,2]
[384697261,1757514633050,-480.0,0.00014443,2]
[384697262,1757514633060,-607.90078602,0.000145,2]
[384697263,1757514633094,-7514.74682874,0.000145,2]
[384697264,1757514633103,-2030.296672,0.00014554,2]
[384697265,1757514633112,-480.0,0.00014604,2]
[384697266,1757514633123,-2105.41764886,0.00014609,2]
[384697267,1757514633133,-2183.31810187,0.00014664,2]
[384697268,1757514633143,-560.0,0.00014717,2]
[384697269,1757514633154,-480.0,0.00014717,2]
[384697270,1757514633165,-480.0,0.00014717,2]
[384697271,1757514633174,-480.0,0.00014717,2]
[384697272,1757514633183,-2264.10087164,0.00014719,2]
[384697273,1757514633193,-2347.87260389,0.00014774,2]
[384697274,1757514633202,-2434.74389024,0.00014829,2]
[384697275,1757514633212,-480.0,0.00014878,2]
[384697276,1757514633222,-2524.82941417,0.00014884,2]
[384697277,1757514633231,-810.96130356,0.00014939,2]
[384697278,1757514633242,-480.0,0.00014991,2]
[384697279,1757514633252,-480.0,0.00014991,2]
[384697280,1757514633261,-480.0,0.00014991,2]
[384697281,1757514633271,-1332.71841088,0.00015063,2]
[384697282,1757514633280,-272.31,0.00015133,3]
[384697283,1757514633289,-366.3626059,0.00015139,2]
[384697284,1757514633299,-284.10849916,0.0001514,2]
[384697285,1757514633308,-500.0,0.00015141,2]
[384697286,1757514633318,-500.0,0.00015141,2]
[384697287,1757514633327,-500.0,0.00015141,2]
[384697288,1757514633337,-394.84572417,0.00015141,2]
[384697289,1757514633346,-500.0,0.00015141,2]
[384697290,1757514633357,-500.0,0.00015141,2]
[384697291,1757514633367,-500.0,0.00015141,2]
[384697292,1757514633376,-500.0,0.00015141,2]
[384697293,1757514633386,-500.0,0.00015141,2]
[384697294,1757514633396,-500.0,0.00015141,2]
[384697295,1757514633406,-500.0,0.00015141,2]
[384697296,1757514633415,-500.0,0.00015141,2]
[384697297,1757514633425,-500.0,0.00015141,2]
[384697298,1757514633434,-500.0,0.00015141,2]
[384697299,1757514633443,-500.0,0.00015141,2]
[384697300,1757514633452,-500.0,0.00015141,2]
[384697301,1757514633461,-500.0,0.00015141,2]
[384697302,1757514633471,-500.0,0.00015141,2]
[384697303,1757514633481,-500.0,0.00015141,2]
[384697304,1757514633490,-500.0,0.00015141,2]
[384697305,1757514633500,-500.0,0.00015141,2]
[384697306,1757514633509,-500.0,0.00015141,2]
[384697307,1757514633519,-500.0,0.00015141,2]
[384697308,1757514633529,-500.0,0.00015141,2]
[384697309,1757514633538,-500.0,0.00015141,2]
[384697310,1757514633548,-500.0,0.00015141,2]
[384697311,1757514633557,-500.0,0.00015141,2]
[384697312,1757514633570,-500.0,0.00015141,2]
[384697313,1757514633580,-500.0,0.00015141,2]
[384697314,1757514633590,-500.0,0.00015141,2]
[384697315,1757514633599,-500.0,0.00015141,2]
[384697316,1757514633610,-500.0,0.00015141,2]
[384697317,1757514633620,-500.0,0.00015141,2]
[384697318,1757514633631,-500.0,0.00015141,2]
[384697319,1757514633641,-500.0,0.00015141,2]
[384697320,1757514633650,-500.0,0.00015141,2]
[384697321,1757514633661,-500.0,0.00015141,2]
[384697322,1757514633672,-500.0,0.00015141,2]
[384697323,1757514633681,-587.29687313,0.00015141,2]
[384697324,1757514633692,-500.0,0.00015141,2]
[384697325,1757514633701,-500.0,0.00015141,2]
[384697326,1757514633711,-536.12154479,0.00015141,2]
[384697327,1757514633721,-500.0,0.00015141,2]
[384697328,1757514633731,-500.0,0.00015141,2]
[384697329,1757514633741,-500.0,0.00015141,2]
[384697330,1757514633751,-500.0,0.00015141,2]
[384697331,1757514633761,-628.10359463,0.00015141,2]
[384697332,1757514633771,-500.0,0.00015141,2]
[384697333,1757514633781,-500.0,0.00015141,2]
[384697334,1757514633791,-500.0,0.00015141,2]
[384697335,1757514633800,-500.0,0.00015141,2]
[384697336,1757514633810,-500.0,0.00015141,2]
[384697337,1757514633820,-500.0,0.00015141,2]
[384697338,1757514633830,-500.0,0.00015141,2]
[384697339,1757514633841,-500.0,0.00015141,2]
[384697340,1757514633851,-500.0,0.00015141,2]
[384697341,1757514633861,-500.0,0.00015141,2]
[384697342,1757514633871,-500.0,0.00015141,2]
[384697343,1757514633881,-500.0,0.00015141,2]
[384697344,1757514633892,-500.0,0.00015141,2]
[384697345,1757514633901,-500.0,0.00015141,2]
[384697346,1757514633911,-500.0,0.00015141,2]
[384697347,1757514633921,-500.0,0.00015141,2]
[384697348,1757514633931,-500.0,0.00015141,2]
[384697349,1757514633941,-500.0,0.00015141,2]
[384697350,1757514633953,-500.0,0.00015141,2]
[384697351,1757514633964,-500.0,0.00015141,2]
[384697352,1757514633973,-500.0,0.00015141,2]
[384697353,1757514633983,-500.0,0.00015141,2]
[384697354,1757514633992,-500.0,0.00015141,2]
[384697355,1757514634001,-500.0,0.00015141,2]
[384697356,1757514634011,-500.0,0.00015141,2]
[384697357,1757514634020,-500.0,0.00015141,2]
[384697358,1757514634030,-500.0,0.00015141,2]
[384697359,1757514634039,-500.0,0.00015141,2]
[384697360,1757514634048,-500.0,0.00015141,2]
[384697361,1757514634058,-200.60302097,0.00015141,2]
[384697362,1757514634068,-500.0,0.00015141,2]
[384697363,1757514634081,-500.0,0.00015141,2]
[384697364,1757514634090,-500.0,0.00015141,2]
[384697365,1757514634099,-500.0,0.00015141,2]
[384697366,1757514634109,-500.0,0.00015141,2]
[384697367,1757514634118,-317.44138104,0.00015141,2]
[384697368,1757514634220,-182.55861896,0.00015141,2]
[384697369,1757514634229,-104.25494521,0.00015141,2]
[384697394,1757514638949,-165.48,0.00014056,2]
[384697395,1757514638959,-480.0,0.00014056,2]
[384697396,1757514638970,-480.0,0.00015143,2]
[384697397,1757514638980,-480.0,0.00015143,2]
[384697398,1757514638990,-480.0,0.00015143,2]
[384697399,1757514639000,-211.78,0.00015143,2]
[384697401,1757514639010,-480.0,0.00015143,2]
[384697402,1757514639020,-544.61,0.00015144,3]
[384697403,1757514639030,-480.0,0.00015152,2]
[384697404,1757514639040,-1826.56,0.00015153,3]
[384697405,1757514639050,-913.28,0.00015153,3]
[384697406,1757514639059,-18603.8837,0.00015154,2]
[384697407,1757514639069,-151.0,0.00015154,2]
[384697408,1757514639082,-151.0,0.00015154,2]
[384697409,1757514639091,-151.0,0.00015154,2]
[384697411,1757514639101,-151.0,0.00015154,2]
[384697412,1757514639112,-151.0,0.00015154,2]
[384697413,1757514639123,-151.0,0.00015154,2]
[384697416,1757514639133,-250.0,0.00015154,2]
[384697417,1757514639142,-151.0,0.00015154,2]
[384697418,1757514639153,-151.0,0.00015154,2]
[384697419,1757514639162,-250.0,0.00015154,2]
[384697420,1757514639171,-151.83333832,0.00015154,2]
[384697421,1757514639180,-151.0,0.00015154,2]
[384697422,1757514639190,-151.0,0.00015154,2]
[384697423,1757514639199,-151.0,0.00015154,2]
[384697424,1757514639208,-250.0,0.00015154,2]
[384697425,1757514639218,-151.0,0.00015154,2]
[384697426,1757514639228,-250.0,0.00015154,2]
[384697427,1757514639237,-151.0,0.00015154,2]
[384697428,1757514639246,-234.19352325,0.00015154,2]
[384697429,1757514639256,-151.0,0.00015154,2]
[384697430,1757514639265,-151.0,0.00015154,2]
[384697431,1757514639274,-151.0,0.00015154,2]
[384697432,1757514639283,-151.0,0.00015154,2]
[384697433,1757514639293,-151.0,0.00015154,2]
[384697434,1757514639302,-151.0,0.00015154,2]
[384697435,1757514639311,-168.3888056,0.00015154,2]
[384697436,1757514639319,-151.0,0.00015154,2]
[384697437,1757514639328,-151.0,0.00015154,2]
[384697438,1757514639339,-151.0,0.00015154,2]
[384697439,1757514639348,-151.0,0.00015154,2]
[384697440,1757514639357,-187.8704837,0.00015154,2]
[384697441,1757514639366,-151.0,0.00015154,2]
[384697442,1757514639375,-151.0,0.00015154,2]
[384697443,1757514639385,-480.0,0.00015161,2]
[384697444,1757514639395,-480.0,0.00015161,2]
[384697445,1757514639404,-350.74241604,0.00015161,2]
[384697446,1757514639414,-480.0,0.00015161,2]